[Event "GER-ch Youth-ODJM 2022"]
[Site "Willingen"]
[Date "2022.06.05"]
[Round "2.4"]
[White "Werner, Florin"]
[Black "Ermert, Karl Hans Ragnar"]
[Result "1-0"]
[ECO "C06"]
[WhiteElo "1609"]
[BlackElo "1662"]
[Annotator "NA RC COMBH"]
[PlyCount "105"]
[EventDate "2022.06.05"]
[EventType "swiss"]
[EventRounds "9"]
[EventCountry "GER"]
[SourceTitle "playchess.com"]
[Source "ChessBase"]
[SourceQuality "1"]
[TimeControl "40/4500+30:900+30"]

1. e4 {[%emt 0:00:00]} e6 {[%emt 0:00:00]} 2. d4 {[%emt 0:00:00]} d5 {[%emt 0:00:00]} 3. Nd2 {[%emt 0:00:00]} Nf6 {[%emt 0:00:00]} 4. e5 {[%emt 0:00:00]} Nfd7 {[%emt 0:00:00]} 5. Bd3 {[%emt 0:00:00]} c5 {[%emt 0:00:00]} 6. c3 {[%emt 0:00:00]} Nc6 {[%emt 0:00:00]} 7. Ne2 {[%emt 0:00:00]} cxd4 {[%emt 0:00:00]} 8. cxd4 {[%emt 0:00:00]} f6 {[%emt 0:00:00]} 9. exf6 {[%emt 0:00:00]} Nxf6 {[%emt 0:00:00]} 10. Nf3 {[%emt 0:00:00]} Bd6 {[%emt 0:00:00]} 11. O-O {[%emt 0:00:00]} Qc7 {[%emt 0:00:00]} 12. g3 {[%emt 0:00:00]} O-O {[%emt 0:00:00]} 13. Bf4 {[%emt 0:00:00]} e5 {[%emt 0:00:00]} 14. dxe5 {[%emt 0:00:00]} Nxe5 {[%emt 0:00:00]} 15. Nxe5 {[%emt 0:00:00]} Bxe5 {[%emt 0:00:00]} 16. Rc1 {[%emt 0:00:00]} Qd6 {[%emt 0:00:00]} 17. Qd2 {[%emt 0:27:02]} Bg4 {[%emt 0:06:48]} 18. Bxe5 {[%emt 0:03:52]} Qxe5 {[%emt 0:00:08]} 19. Nf4 {[%emt 0:01:13]} Ne4 {[%emt 0:12:39]} 20. Bxe4 {[%emt 0:01:49]} dxe4 {[%emt 0:00:26]} 21. Qe3 {[%emt 0:07:32]} Bf3 {[%emt 0:11:54]} 22. Ng2 {[%emt 0:10:49]} Qf5 {[%emt 0:17:12]} 23. Rc5 {[%emt 0:05:04]} Qh3 {[%emt 0:03:08]} 24. Nh4 {[%emt 0:00:10]} Rf6 {[%emt 0:12:58]} 25. Qb3+ {[%emt 0:06:57]} Kh8 {[%emt 0:00:08]} 26. Qxb7 {[%emt 0:00:12]} Rg8 {[%emt 0:00:37]} 27. Rfc1 {[%emt 0:06:19]} Rd6 {[%emt 0:14:19]} 28. Nxf3 {[%emt 0:02:35]} exf3 {[%emt 0:01:45]} 29. Qxf3 {[%emt 0:00:18]} Rgd8 {[%emt 0:01:59]} 30. Rf5 {[%emt 0:02:28]} Kg8 {[%emt 0:01:19]} 31. Rf4 {[%emt 0:03:37]} Rh6 {[%emt 0:01:37]} 32. Qg2 {[%emt 0:00:43]} Qxg2+ {[%emt 0:01:12]} 33. Kxg2 {[%emt 0:00:07]} Ra6 {[%emt 0:00:30]} 34. a4 {[%emt 0:00:09]} Rb6 {[%emt 0:00:31]} 35. b4 {[%emt 0:00:20]} Rdb8 {[%emt 0:00:32]} 36. b5 {[%emt 0:00:33]} a6 {[%emt 0:01:04]} 37. bxa6 {[%emt 0:00:17]} Rxa6 {[%emt 0:00:06]} 38. Ra1 {[%emt 0:00:03]} Rba8 {[%emt 0:00:40]} 39. h4 {[%emt 0:00:58]} Ra5 {[%emt 0:00:56]} 40. g4 {[%emt 0:00:13]} g6 {[%emt 0:00:52]} 41. Kg3 {[%emt 0:17:10]} Kg7 {[%emt 0:15:51]} 42. Rb4 {[%emt 0:00:45]} R8a7 {[%emt 0:00:24]} 43. g5 {[%emt 0:00:29]} Kf7 {[%emt 0:01:09]} 44. f4 {[%emt 0:00:42]} Kg7 {[%emt 0:00:19]} 45. Kg4 {[%emt 0:00:06]} Kf7 {[%emt 0:00:00]} 46. h5 {[%emt 0:00:00]} Kg7 {[%emt 0:00:00]} 47. h6+ {[%emt 0:00:00]} Kf7 {[%emt 0:00:00]} 48. Kf3 {[%emt 0:00:00]} Ke6 {[%emt 0:00:00]} 49. Re1+ {[%emt 0:00:00]} Kf7 {[%emt 0:00:00]} 50. Ree4 {[%emt 0:00:00]} Rd5 {[%emt 0:00:00]} 51. Ke3 {[%emt 0:00:00]} Rc7 {[%emt 0:00:00]} 52. Rb6 {[%emt 0:00:00]} Re7 {[%emt 0:00:00]} 53. Rxe7+ {[%emt 0:00:00]} 1-0

[Event "GER-ch Youth-ODJM 2022"]
[Site "Willingen"]
[Date "2022.06.05"]
[Round "2.4"]
[White "Pac, Maksym"]
[Black "Peglau, Lorena"]
[Result "0-1"]
[ECO "A40"]
[WhiteElo "1033"]
[BlackElo "1224"]
[Annotator "NA RC COMBH"]
[PlyCount "48"]
[EventDate "2022.06.05"]
[EventType "swiss"]
[EventRounds "9"]
[EventCountry "GER"]
[SourceTitle "playchess.com"]
[Source "ChessBase"]
[SourceQuality "1"]
[TimeControl "40/4500+30:900+30"]

1. d4 {[%emt 0:00:00]} e6 {[%emt 0:00:00]} 2. Nc3 {[%emt 0:00:00]} d5 {[%emt 0:00:00]} 3. Bf4 {[%emt 0:00:00]} Nf6 {[%emt 0:00:00]} 4. e3 {[%emt 0:00:00]} c5 {[%emt 0:00:00]} 5. Nb5 {[%emt 0:00:00]} Na6 {[%emt 0:00:00]} 6. dxc5 {[%emt 0:00:00]} Bxc5 {[%emt 0:00:00]} 7. Bd3 {[%emt 0:00:00]} O-O {[%emt 0:00:00]} 8. g4 {[%emt 0:00:00]} h6 {[%emt 0:00:00]} 9. h4 {[%emt 0:00:00]} Qa5+ {[%emt 0:00:00]} 10. c3 {[%emt 0:00:00]} Qb6 {[%emt 0:00:00]} 11. g5 {[%emt 0:02:54]} Ne4 {[%emt 0:02:49]} 12. gxh6 {[%emt 0:04:00]} Bd7 {[%emt 0:05:20]} 13. Bxe4 {[%emt 0:13:29]} Qxb5 {[%emt 0:01:07]} 14. hxg7 {[%emt 0:09:17]} Rfc8 {[%emt 0:03:16]} 15. Bh7+ {[%emt 0:21:45]} Kxg7 {[%emt 0:02:26]} 16. Qh5 {[%emt 0:13:19]} Kf8 {[%emt 0:01:42]} 17. Qh6+ {[%emt 0:06:02]} Ke7 {[%emt 0:00:33]} 18. Qg5+ {[%emt 0:00:51]} Ke8 {[%emt 0:00:40]} 19. Qg8+ {[%emt 0:01:18]} Ke7 {[%emt 0:00:13]} 20. Qg5+ {[%emt 0:00:47]} Ke8 {[%emt 0:00:14]} 21. Qh5 {[%emt 0:01:55]} Qxb2 {[%emt 0:02:24]} 22. Bg8 {[%emt 0:01:36]} Qxa1+ {[%emt 0:02:25]} 23. Ke2 {[%emt 0:00:47]} Bb5+ {[%emt 0:00:26]} 24. Kf3 {[%emt 0:01:03]} Qd1+ {[%emt 0:00:24]} 0-1

[Event "GER-ch Youth-ODJM 2022"]
[Site "Willingen"]
[Date "2022.06.05"]
[Round "2.5"]
[White "Schilay, Vinzenz"]
[Black "Hildebrand, Azat"]
[Result "0-1"]
[ECO "B23"]
[WhiteElo "1003"]
[BlackElo "1190"]
[Annotator "NA RC COMBH"]
[PlyCount "118"]
[EventDate "2022.06.05"]
[EventType "swiss"]
[EventRounds "9"]
[EventCountry "GER"]
[SourceTitle "playchess.com"]
[Source "ChessBase"]
[SourceQuality "1"]
[TimeControl "40/4500+30:900+30"]

1. e4 {[%emt 0:00:00]} c5 {[%emt 0:00:00]} 2. Nc3 {[%emt 0:00:00]} e6 {[%emt 0:00:00]} 3. g3 {[%emt 0:00:00]} a6 {[%emt 0:00:00]} 4. Bg2 {[%emt 0:00:00]} Qc7 {[%emt 0:00:00]} 5. d3 {[%emt 0:00:00]} b5 {[%emt 0:00:00]} 6. Bf4 {[%emt 0:00:00]} d6 {[%emt 0:00:00]} 7. Qd2 {[%emt 0:00:00]} Nf6 {[%emt 0:00:00]} 8. e5 dxe5 {[%emt 0:00:00]} 9. Bxa8 {[%emt 0:00:00]} exf4 {[%emt 0:00:00]} 10. Qxf4 {[%emt 0:00:00]} Bd6 {[%emt 0:00:00]} 11. Qg5 {[%emt 0:00:00]} O-O {[%emt 0:00:00]} 12. Be4 {[%emt 0:00:00]} Nxe4 {[%emt 0:00:00]} 13. Nxe4 {[%emt 0:00:00]} Be7 {[%emt 0:00:00]} 14. Qf4 {[%emt 0:00:00]} Qxf4 {[%emt 0:00:00]} 15. gxf4 {[%emt 0:00:00]} Bb7 {[%emt 0:00:00]} 16. f3 {[%emt 0:00:00]} Nd7 {[%emt 0:00:00]} 17. O-O-O {[%emt 0:00:00]} Nf6 {[%emt 0:00:52]} 18. Nh3 {[%emt 0:00:00]} Nxe4 {[%emt 0:00:24]} 19. fxe4 {[%emt 0:00:00]} Bd6 {[%emt 0:01:40]} 20. Rhg1 {[%emt 0:00:00]} e5 {[%emt 0:00:43]} 21. f5 {[%emt 0:00:00]} Be7 {[%emt 0:02:41]} 22. Rdf1 {[%emt 0:00:00]} Kh8 {[%emt 0:01:27]} 23. Nf2 {[%emt 0:00:00]} Rd8 {[%emt 0:00:47]} 24. Rg4 {[%emt 0:00:00]} h6 {[%emt 0:02:57]} 25. Rg2 {[%emt 0:00:00]} Bg5+ {[%emt 0:00:45]} 26. Kb1 {[%emt 0:00:11]} c4 {[%emt 0:00:56]} 27. Ng4 {[%emt 0:00:23]} f6 {[%emt 0:00:47]} 28. Nf2 {[%emt 0:00:51]} Be3 {[%emt 0:00:26]} 29. Rd1 {[%emt 0:02:51]} Bxf2 {[%emt 0:00:54]} 30. Rxf2 {[%emt 0:01:17]} Bxe4 {[%emt 0:00:16]} 31. Rdd2 {[%emt 0:00:57]} cxd3 {[%emt 0:00:56]} 32. cxd3 {[%emt 0:00:38]} Rxd3 {[%emt 0:00:31]} 33. Rxd3 {[%emt 0:00:19]} Bxd3+ {[%emt 0:00:09]} 34. Kc1 {[%emt 0:00:13]} e4 {[%emt 0:00:26]} 35. Kd2 {[%emt 0:00:06]} Kh7 {[%emt 0:01:24]} 36. Rg2 {[%emt 0:00:51]} Bb1 {[%emt 0:01:17]} 37. a3 {[%emt 0:00:34]} e3+ {[%emt 0:00:25]} 38. Kxe3 {[%emt 0:00:23]} Bxf5 {[%emt 0:00:13]} 39. Rc2 Bxc2 {[%emt 0:00:17]} 40. Kd4 {[%emt 0:00:48]} f5 {[%emt 0:00:14]} 41. Kc5 {[%emt 0:15:09]} f4 {[%emt 0:15:14]} 42. Kb6 {[%emt 0:00:41]} f3 {[%emt 0:00:12]} 43. Kxa6 {[%emt 0:00:06]} f2 {[%emt 0:00:07]} 44. Kxb5 {[%emt 0:00:03]} f1=Q+ {[%emt 0:00:14]} 45. Kb4 {[%emt 0:00:10]} Qd3 {[%emt 0:00:09]} 46. h4 {[%emt 0:00:28]} Qd4+ {[%emt 0:00:19]} 47. Kb5 {[%emt 0:00:04]} Qxb2+ {[%emt 0:00:10]} 48. Kc4 {[%emt 0:00:06]} Qxa3 {[%emt 0:00:13]} 49. h5 {[%emt 0:00:07]} Qd3+ {[%emt 0:00:10]} 50. Kb4 {[%emt 0:00:05]} Bd1 {[%emt 0:00:18]} 51. Kc5 {[%emt 0:00:07]} Kg8 {[%emt 0:00:25]} 52. Kb4 {[%emt 0:00:07]} Qc2 {[%emt 0:00:12]} 53. Kb5 {[%emt 0:00:16]} Be2+ {[%emt 0:00:19]} 54. Kb4 {[%emt 0:00:04]} Qc4+ {[%emt 0:00:13]} 55. Ka3 {[%emt 0:00:11]} Qb5 {[%emt 0:00:13]} 56. Ka2 {[%emt 0:00:10]} Qb4 {[%emt 0:00:13]} 57. Ka1 {[%emt 0:00:08]} Bd3 {[%emt 0:00:33]} 58. Ka2 {[%emt 0:00:08]} Kf7 {[%emt 0:00:11]} 59. Ka1 {[%emt 0:00:07]} Qb1# {[%emt 0:00:15]} 0-1

[Event "GER-ch Youth-ODJM 2022"]
[Site "Willingen"]
[Date "2022.06.05"]
[Round "2.7"]
[White "Tryfon, Konstantin"]
[Black "Masur, Maxim"]
[Result "0-1"]
[ECO "A20"]
[WhiteElo "1634"]
[BlackElo "1428"]
[Annotator "NA RC COMBH"]
[PlyCount "58"]
[EventDate "2022.06.05"]
[EventType "swiss"]
[EventRounds "9"]
[EventCountry "GER"]
[SourceTitle "playchess.com"]
[Source "ChessBase"]
[SourceQuality "1"]
[TimeControl "40/4500+30:900+30"]

1. c4 {[%emt 0:00:00]} e5 {[%emt 0:00:00]} 2. g3 {[%emt 0:00:00]} Bc5 {[%emt 0:00:00]} 3. Bg2 {[%emt 0:00:00]} Nf6 {[%emt 0:00:00]} 4. e4 {[%emt 0:00:00]} d6 {[%emt 0:00:00]} 5. Ne2 {[%emt 0:00:00]} Nc6 {[%emt 0:00:00]} 6. O-O {[%emt 0:00:00]} Be6 {[%emt 0:00:00]} 7. d3 {[%emt 0:00:00]} Qd7 {[%emt 0:00:00]} 8. Nbc3 {[%emt 0:00:00]} h5 {[%emt 0:00:00]} 9. Nd5 {[%emt 0:00:00]} h4 {[%emt 0:00:00]} 10. gxh4 {[%emt 0:00:00]} Bh3 {[%emt 0:00:00]} 11. Bg5 {[%emt 0:00:00]} Nxd5 {[%emt 0:00:00]} 12. exd5 {[%emt 0:00:00]} Bxg2 {[%emt 0:00:00]} 13. Kxg2 {[%emt 0:00:00]} f6 {[%emt 0:00:00]} 14. dxc6 {[%emt 0:00:00]} Qxc6+ {[%emt 0:00:00]} 15. f3 {[%emt 0:00:22]} fxg5 {[%emt 0:00:00]} 16. hxg5 {[%emt 0:00:24]} Qd7 {[%emt 0:00:00]} 17. h4 {[%emt 0:01:49]} Rxh4 {[%emt 0:00:00]} 18. Rh1 {[%emt 0:00:14]} Rxh1 {[%emt 0:00:10]} 19. Qxh1 {[%emt 0:00:06]} O-O-O {[%emt 0:01:43]} 20. Qh3 {[%emt 0:00:47]} Be3 {[%emt 0:00:31]} 21. Qg3 {[%emt 0:07:53]} Qf5 {[%emt 0:00:40]} 22. Qg4 {[%emt 0:03:02]} Qxg4+ {[%emt 0:00:30]} 23. fxg4 {[%emt 0:00:35]} Bxg5 {[%emt 0:00:04]} 24. Rf1 {[%emt 0:00:44]} c6 {[%emt 0:01:31]} 25. Nc3 {[%emt 0:00:32]} Kc7 {[%emt 0:01:20]} 26. Ne4 {[%emt 0:02:16]} Bf4 {[%emt 0:00:22]} 27. c5 {[%emt 0:04:18]} d5 {[%emt 0:01:01]} 28. Nc3 {[%emt 0:00:26]} Be3 {[%emt 0:00:14]} 29. b4 {[%emt 0:01:00]} Bd2 {[%emt 0:01:21]} 0-1

[Event "GER-ch Youth-ODJM 2022"]
[Site "Willingen"]
[Date "2022.06.05"]
[Round "2.8"]
[White "Moissl, Felix"]
[Black "Stepanjan, Tatevik Mia"]
[Result "1-0"]
[ECO "B22"]
[WhiteElo "928"]
[BlackElo "1057"]
[Annotator "NA RC COMBH"]
[PlyCount "61"]
[EventDate "2022.06.05"]
[EventType "swiss"]
[EventRounds "9"]
[EventCountry "GER"]
[SourceTitle "playchess.com"]
[Source "ChessBase"]
[SourceQuality "1"]
[TimeControl "40/4500+30:900+30"]

1. e4 {[%emt 0:00:00]} c5 {[%emt 0:00:00]} 2. c3 {[%emt 0:00:00]} Nc6 {[%emt 0:00:00]} 3. d4 {[%emt 0:00:00]} e6 {[%emt 0:00:00]} 4. Nf3 {[%emt 0:00:00]} d6 {[%emt 0:00:00]} 5. Bb5 {[%emt 0:00:00]} Bd7 {[%emt 0:00:00]} 6. O-O {[%emt 0:00:00]} Nf6 {[%emt 0:00:00]} 7. Re1 {[%emt 0:00:00]} a6 {[%emt 0:00:00]} 8. Bxc6 {[%emt 0:00:00]} Bxc6 {[%emt 0:00:00]} 9. d5 {[%emt 0:00:00]} Bd7 {[%emt 0:00:00]} 10. Bg5 {[%emt 0:00:00]} Be7 {[%emt 0:00:00]} 11. Nbd2 {[%emt 0:00:00]} O-O {[%emt 0:00:00]} 12. Qc2 {[%emt 0:00:00]} Re8 {[%emt 0:00:00]} 13. a3 {[%emt 0:00:30]} exd5 {[%emt 0:00:07]} 14. exd5 {[%emt 0:00:34]} Nxd5 {[%emt 0:00:53]} 15. Bxe7 {[%emt 0:03:26]} Rxe7 {[%emt 0:00:51]} 16. Rxe7 {[%emt 0:00:22]} Qxe7 {[%emt 0:00:29]} 17. Re1 {[%emt 0:00:57]} Qf6 {[%emt 0:01:13]} 18. Qb3 {[%emt 0:01:54]} Be6 {[%emt 0:02:16]} 19. Qxb7 {[%emt 0:00:56]} Qd8 {[%emt 0:02:44]} 20. Ng5 {[%emt 0:04:40]} Rb8 {[%emt 0:03:22]} 21. Nxe6 {[%emt 0:01:13]} fxe6 {[%emt 0:03:10]} 22. Qxa6 {[%emt 0:00:37]} Rxb2 {[%emt 0:02:07]} 23. Nc4 {[%emt 0:00:40]} Ra2 {[%emt 0:03:34]} 24. Nxd6 {[%emt 0:00:34]} Qf8 {[%emt 0:01:36]} 25. f3 {[%emt 0:02:15]} Rb2 {[%emt 0:04:29]} 26. Nc4 {[%emt 0:02:44]} Rc2 {[%emt 0:03:26]} 27. Qxe6+ {[%emt 0:00:54]} Qf7 {[%emt 0:00:46]} 28. Qc8+ {[%emt 0:00:18]} Qf8 {[%emt 0:01:22]} 29. Re8 {[%emt 0:00:19]} Rc1+ {[%emt 0:00:11]} 30. Kf2 {[%emt 0:00:08]} Rc2+ {[%emt 0:00:26]} 31. Kg3 {[%emt 0:00:19]} 1-0

[Event "GER-ch Youth-ODJM 2022"]
[Site "Willingen"]
[Date "2022.06.05"]
[Round "2.9"]
[White "Laux, Filip"]
[Black "Abou Wally, Adrian"]
[Result "1/2-1/2"]
[ECO "C54"]
[WhiteElo "1395"]
[BlackElo "1601"]
[Annotator "NA RC COMBH"]
[PlyCount "129"]
[EventDate "2022.06.05"]
[EventType "swiss"]
[EventRounds "9"]
[EventCountry "GER"]
[SourceTitle "playchess.com"]
[Source "ChessBase"]
[SourceQuality "1"]
[TimeControl "40/4500+30:900+30"]

1. e4 e5 2. Nf3 Nc6 3. Bc4 Bc5 4. c3 Nf6 5. d3 {[%emt 0:00:00]} d6 {[%emt 0:00:00]} 6. Bb3 {[%emt 0:00:00]} a6 {[%emt 0:00:00]} 7. Nbd2 {[%emt 0:00:00]} Ba7 {[%emt 0:00:00]} 8. O-O {[%emt 0:00:00]} O-O {[%emt 0:00:00]} 9. h3 {[%emt 0:00:00]} h6 {[%emt 0:00:00]} 10. Re1 {[%emt 0:00:00]} Be6 {[%emt 0:00:00]} 11. Nf1 {[%emt 0:00:00]} Re8 {[%emt 0:00:00]} 12. Ng3 {[%emt 0:00:00]} Qd7 {[%emt 0:00:00]} 13. Be3 {[%emt 0:04:06]} Bxe3 {[%emt 0:00:00]} 14. Rxe3 {[%emt 0:00:42]} d5 {[%emt 0:09:56]} 15. exd5 {[%emt 0:01:25]} Bxd5 {[%emt 0:03:14]} 16. Bxd5 {[%emt 0:03:25]} Qxd5 {[%emt 0:06:57]} 17. Qc2 {[%emt 0:01:36]} Rad8 {[%emt 0:17:06]} 18. Nd2 {[%emt 0:04:05]} Nd7 {[%emt 0:12:44]} 19. Qb3 {[%emt 0:02:54]} Nb6 {[%emt 0:04:50]} 20. Rd1 {[%emt 0:02:05]} Qxb3 {[%emt 0:03:19]} 21. Nxb3 {[%emt 0:00:14]} Nd5 {[%emt 0:01:38]} 22. Re2 {[%emt 0:03:19]} Nf4 {[%emt 0:00:36]} 23. Red2 {[%emt 0:00:17]} Ne6 {[%emt 0:02:41]} 24. Ne4 {[%emt 0:02:23]} b6 {[%emt 0:05:14]} 25. a4 {[%emt 0:03:07]} Rd5 {[%emt 0:01:56]} 26. Na1 {[%emt 0:09:21]} Red8 {[%emt 0:01:52]} 27. f3 {[%emt 0:03:26]} Nf4 {[%emt 0:02:57]} 28. Nf2 {[%emt 0:00:35]} Na5 {[%emt 0:03:24]} 29. b3 {[%emt 0:04:17]} c5 {[%emt 0:01:11]} 30. g3 {[%emt 0:01:14]} Ne6 {[%emt 0:00:16]} 31. Ne4 {[%emt 0:04:38]} f5 {[%emt 0:00:41]} 32. Nf2 {[%emt 0:01:40]} Ng5 {[%emt 0:02:20]} 33. Kg2 {[%emt 0:00:18]} e4 {[%emt 0:03:02]} 34. fxe4 {[%emt 0:06:44]} fxe4 {[%emt 0:00:29]} 35. Re2 {[%emt 0:00:53]} exd3 {[%emt 0:01:16]} 36. Red2 {[%emt 0:00:30]} c4 {[%emt 0:01:55]} 37. bxc4 {[%emt 0:00:19]} Nxc4 {[%emt 0:00:21]} 38. Rxd3 {[%emt 0:00:26]} Rxd3 {[%emt 0:00:38]} 39. Rxd3 {[%emt 0:00:09]} Rxd3 {[%emt 0:00:27]} 40. Nxd3 {[%emt 0:00:07]} Ne4 {[%emt 0:00:48]} 41. Nb4 {[%emt 0:15:56]} Nxc3 {[%emt 0:16:57]} 42. Nxa6 {[%emt 0:00:22]} Nxa4 {[%emt 0:00:02]} 43. Nc2 {[%emt 0:00:48]} Nc3 {[%emt 0:02:22]} 44. Nab4 {[%emt 0:01:25]} Kf7 {[%emt 0:00:26]} 45. Kf3 {[%emt 0:00:24]} Kf6 {[%emt 0:00:15]} 46. h4 {[%emt 0:01:09]} b5 {[%emt 0:00:00]} 47. Kf4 {[%emt 0:00:00]} Nd2 {[%emt 0:00:00]} 48. Ke3 {[%emt 0:00:00]} Nde4 {[%emt 0:00:00]} 49. g4 {[%emt 0:00:00]} Ke5 {[%emt 0:00:00]} 50. Nc6+ {[%emt 0:00:00]} Kf6 {[%emt 0:00:00]} 51. N6d4 {[%emt 0:00:00]} Nd6 {[%emt 0:00:00]} 52. Kd3 {[%emt 0:00:00]} Nd5 {[%emt 0:00:00]} 53. Nc6 {[%emt 0:00:00]} Ke6 {[%emt 0:00:00]} 54. Kd4 {[%emt 0:00:00]} Nf4 {[%emt 0:00:00]} 55. Ne3 {[%emt 0:01:02]} Ng6 {[%emt 0:00:00]} 56. Ng2 {[%emt 0:02:23]} Ne7 {[%emt 0:00:17]} 57. Nf4+ {[%emt 0:01:47]} Kf7 {[%emt 0:03:16]} 58. Ne5+ {[%emt 0:03:25]} Kf8 {[%emt 0:00:23]} 59. Ne6+ {[%emt 0:01:29]} Kg8 {[%emt 0:00:33]} 60. Kc5 {[%emt 0:00:36]} Nec8 {[%emt 0:01:09]} 61. Nc7 {[%emt 0:00:44]} Kf8 {[%emt 0:00:50]} 62. Nxb5 {[%emt 0:00:35]} Nxb5 63. Kxb5 {[%emt 0:00:08]} Ke7 {[%emt 0:00:07]} 64. Kc5 {[%emt 0:00:27]} Ke6 {[%emt 0:00:23]} 65. Kd4 {[%emt 0:00:34]} 1/2-1/2

[Event "GER-ch Youth-ODJM 2022"]
[Site "Willingen"]
[Date "2022.06.05"]
[Round "2.10"]
[White "Keuper, David"]
[Black "Hoffmann, Alexander"]
[Result "0-1"]
[ECO "A46"]
[WhiteElo "1243"]
[BlackElo "2404"]
[Annotator "TA"]
[PlyCount "70"]
[EventDate "2022.06.05"]
[EventType "swiss"]
[EventRounds "9"]
[EventCountry "GER"]
[SourceTitle "playchess.com"]
[Source "ChessBase"]
[SourceQuality "1"]
[TimeControl "40/4500+30:900+30"]

{[%evp 9,70,8,9,0,7,1,7,2,16,-2,0,4,77,39,134,111,124,118,141,104,141,61,114,100,112,110,171,154,162,150,168,155,145,142,176,33,44,-279,-280,-314,-326,-377,-373,-370,-367,-420,-406,-407,-389,-498,-486,-851,-847,-899,-887,-1122,-592,-1110,-1076,-1721,-1566,-3320,-3175]} 1. d4 {[%emt 0:00:00]} Nf6 {[%emt 0:00:00]} 2. Nf3 {[%emt 0:00:00]} e6 {[%emt 0:00:00]} 3. e3 {[%emt 0:00:00]} b6 {[%emt 0:00:00]} 4. Bd3 {[%emt 0:00:00]} Bb7 {[%emt 0:00:00]} 5. b3 {[%emt 0:00:00]} c5 {[%emt 0:00:00]} 6. Bb2 {[%emt 0:00:00] A47: 1 d4 Nf6 2 Nf3 b6: Torre, London and Colle Systems.} Nc6 {[%emt 0:00:00]} 7. a3 {[%emt 0:00:00]} d5 {[%emt 0:00:00]} 8. O-O {[%emt 0:00:00] The position is equal.} Bd6 {[%emt 0:00:00]} 9. Ne5 {[%emt 0:00:00]} Qc7 {[%emt 0:07:06][%cal Rc6e5]} 10. f4 {[%emt 0:00:00][%cal Bf2f4,Bf4e5][%mdl 32] [#]} O-O-O $146 {[%emt 0:13:54]} (10... Be7 $11 {remains equal.}) ({Predecessor:} 10... Ne4 11. Nd2 Nxd2 12. Qxd2 f6 13. Nxc6 Bxc6 14. Rf3 O-O-O 15. Rc1 g5 16. dxc5 Bxc5 {1-0 (56) Milivojevic,J (1886)-Kurcubic,D (2126) Sombor 2018}) 11. Qe2 {[%emt 0:00:17]} (11. Nc3 $5 {[%cal Rc3b5]}) 11... Kb8 {[%emt 0:07:28]} (11... cxd4 $14 12. exd4 Ne4) 12. Nc3 $1 $16 {[%emt 0:01:47]} Qe7 {[%emt 0:04:11]} 13. Nb5 {[%emt 0:06:23]} Bxe5 {[%emt 0:05:03]} 14. fxe5 {[%emt 0:03:03]} Ne8 {[%emt 0:04:47]} (14... Ne4 $2 15. Bxe4 dxe4 16. dxc5 $18) 15. Bc1 {[%emt 0:18:07]} (15. a4 $16) 15... cxd4 {[%emt 0:04:27]} (15... f6 $14) 16. exd4 {[%emt 0:10:36]} a6 {[%emt 0:07:05]} 17. Nc3 {[%emt 0:00:26]} Nxd4 {[%emt 0:01:11] [#]} (17... f6 $16 {was worth a try.}) 18. Qf2 $1 $18 {[%emt 0:02:36]} ({Inferior is} 18. Qe3 Nxc2 19. Bxc2 d4 $11) 18... Nc6 {[%emt 0:01:00]} (18... Qc5 $2 19. Na4 Nf3+ 20. gxf3 $18) 19. Qxb6 {[%emt 0:01:12]} Nxe5 {[%emt 0:02:49]} 20. Bxa6 {[%emt 0:01:05]} Qc7 {[%emt 0:08:02]} 21. Qb4 {[%emt 0:10:29] Black must now prevent Bf4.} f6 {[%emt 0:04:15]} 22. Be3 {[%emt 0:05:41] This bishop pair is nice.} (22. Na4 $18 {Nc5 is the strong threat.} Nd6 23. Bf4) 22... Nc6 $14 {[%emt 0:02:46]} 23. Qb5 {[%emt 0:04:48][%mdl 8192] [#] Loses the game.} (23. Qxb7+ $1 $14 {keeps the upper hand.} Qxb7 24. Bxb7 Kxb7 25. Bc5) 23... d4 $1 $19 {[%emt 0:02:17] The board is on fire.} 24. Bxb7 {[%emt 0:09:04]} Qxb7 {[%emt 0:02:21]} 25. Bf2 {[%emt 0:01:34]} dxc3 {[%emt 0:01:24]} 26. Qc4 {[%emt 0:01:21]} Nc7 {[%emt 0:01:22]} 27. Bg3 {[%emt 0:00:45]} e5 {[%emt 0:00:47]} 28. Qxc3 {[%emt 0:01:15]} Nd4 {[%emt 0:01:13] Hoping for ...Ne2+.} 29. Rfe1 {[%emt 0:01:00] Inhibits Ne2+.} Nce6 {[%emt 0:01:11] Black is clearly winning.} 30. Kf1 {[%emt 0:01:39]} (30. Qd3 $142) 30... Rc8 {[%emt 0:00:20]} 31. Qa5 {[%emt 0:00:55]} Nxc2 {[%emt 0:01:39][%cal Bd4c2,Bc2a1,Ba1b3,Bb3d2][%mdl 32]} 32. Bxe5+ {[%emt 0:00:43]} Nc7 {[%emt 0:00:43]} 33. Rec1 {[%emt 0:01:53]} Nxa1 {[%emt 0:01:33]} 34. Rc4 {[%emt 0:00:56]} Nxb3 {[%emt 0:00:42]} 35. Qa4 {[%emt 0:00:57]} Nd2+ {[%emt 0:00:16] Weighted Error Value: White=0.92/Black=0.32} 0-1

[Event "GER-ch Youth-ODJM 2022"]
[Site "Willingen"]
[Date "2022.06.05"]
[Round "2.11"]
[White "Maul, Maik Joel"]
[Black "Schaudienst, Arvid"]
[Result "1-0"]
[ECO "B07"]
[WhiteElo "1532"]
[BlackElo "1411"]
[Annotator "NA RC COMBH"]
[PlyCount "43"]
[EventDate "2022.06.05"]
[EventType "swiss"]
[EventRounds "9"]
[EventCountry "GER"]
[SourceTitle "playchess.com"]
[Source "ChessBase"]
[SourceQuality "1"]
[TimeControl "40/4500+30:900+30"]

1. d4 {[%emt 0:00:00]} Nf6 {[%emt 0:00:00]} 2. Nc3 {[%emt 0:00:00]} d6 {[%emt 0:00:00]} 3. e4 {[%emt 0:00:00]} g6 {[%emt 0:00:00]} 4. Be3 {[%emt 0:00:00]} Bg7 {[%emt 0:00:00]} 5. f3 {[%emt 0:00:00]} O-O {[%emt 0:00:00]} 6. Qd2 {[%emt 0:00:00]} Nbd7 {[%emt 0:00:00]} 7. O-O-O {[%emt 0:00:00]} Nb6 {[%emt 0:00:48]} 8. Bh6 {[%emt 0:00:00]} Bd7 {[%emt 0:01:26]} 9. h4 {[%emt 0:00:00]} Rc8 {[%emt 0:06:08]} 10. h5 {[%emt 0:00:00]} Bh8 {[%emt 0:14:27]} 11. Bxf8 {[%emt 0:00:00]} Qxf8 {[%emt 0:00:24]} 12. hxg6 {[%emt 0:00:00]} fxg6 {[%emt 0:01:23]} 13. e5 {[%emt 0:03:37]} Nh5 {[%emt 0:06:56]} 14. Qg5 {[%emt 0:04:34]} Bg7 {[%emt 0:04:46]} 15. Kb1 {[%emt 0:01:39]} Nf4 {[%emt 0:08:40]} 16. g3 {[%emt 0:02:53]} Nh5 {[%emt 0:06:20]} 17. Bd3 {[%emt 0:01:57]} Qf7 {[%emt 0:05:02]} 18. f4 {[%emt 0:09:01]} Bc6 {[%emt 0:06:16]} 19. Be4 {[%emt 0:03:09]} Bxe4 {[%emt 0:01:06]} 20. Nxe4 {[%emt 0:00:03]} Qd5 {[%emt 0:02:25]} 21. Re1 {[%emt 0:03:26]} Qxd4 {[%emt 0:04:11]} 22. Nf3 {[%emt 0:01:38]} 1-0